Cogmind - Beta 12 *** ADVENTURER MODE // 2023.05.23 @ 09:28:28 Player: Ms. V3-11A Result: Destroyed by Y-64 Sentinel with KE Penetrator Performance ------------- Evolutions (6) 3000 Regions Visited (15) 3000 Robots Destroyed (220) 1100 Value Destroyed (10142) 10142 Prototype IDs (51) 1020 Alien Tech Used (0) 0 Bonus (3327) 3327 TOTAL SCORE: 21589 Bonus ------- High Alert Combat Kills 916 Follower Combat Kills 2377 Built Enhanced Grunts 300 A7 Reached Mainframe 300 Met R17 at Cetus 500 Friendly Fire -1066 Cogmind --------- Core Integrity 0/1150 Matter 300/300 Energy 99/100 System Corruption 22% Temperature Cool (9) Movement Core (50) Location -4/Factory Parts ------- > --- POWER (2) -------- (None) > --- PROPULSION (4) --- (None) > --- UTILITY (10) ----- Machine Analyzer > --- WEAPON (3) ------- (None) > --- INVENTORY (5) ---- Large Storage Unit Advanced Energy Well (500) Advanced Energy Well (500) Matter Compressor (250) GAL Module Peak State ------------ > --- POWER ------------ Antimatter Reactor Light Quantum Reactor > --- PROPULSION ------- Centrium Heavy Treads Centrium Heavy Treads > --- UTILITY ---------- Improved Heat Sink Advanced Heat Sink High-capacity Storage Unit Machine Analyzer 0b10 Decoder Chip [Generic] 0b10 Decoder Chip [Looter] Centrium Medium Armor Plating Improved Powered Armor Improved Force Field Experimental Hacking Suite > --- WEAPON ----------- Advanced Variable Charge Gun Advanced KE Penetrator Advanced KE Penetrator > --- INVENTORY -------- Light Angular Momentum Engine Centrium Heavy Treads Large Storage Unit Advanced Energy Well Advanced Energy Well Matter Compressor Centrium Medium Armor Plating Centrium Medium Armor Plating Centrium Medium Armor Plating Improved Powered Armor Recalibrator Advanced Variable Charge Gun Improved KE Penetrator Field Lobotomy Kit Impact Mace GAL Module [Rating: 140] Favorites ----------- Power Ion Engine Engine Ion Engine Power Core Fission Core Reactor Light Antimatter Reactor Propulsion Carbon-fiber Leg Treads Centrium Heavy Treads Leg Carbon-fiber Leg Utility Hacking Suite Device Improved Sensor Array Storage High-capacity Storage Unit Processor Improved Signal Interpreter Hackware Hacking Suite Protection Centrium Medium Armor Plating Weapon Heavy Battle Rifle Energy Gun Particle Gun Energy Cannon Advanced Beam Cannon Ballistic Gun Heavy Battle Rifle Ballistic Cannon Slug Cannon Launcher Rocket Launcher Special Weapon Field Lobotomy Kit Impact Weapon Impact Mace Build | -11 -10 -10 -10 -9 -8 -7 -7 -7 -7 -6 -6 -6 -6 -5 -4 ------- Run | Jun Mat Min Exi Min Mat Fac Low Low Zio Pro Fac Ext Cet Fac Fac Slots Evolved 12 | . . . . . 4 2 . . . . 2 . . 2 2 Power 1 | . . . . . . . . . . . . . . . 1 Propulsion 2 | . . . . . 1 . . . . . . . . 1 . Utility 8 | . . . . . 2 2 . . . . 2 . . 1 1 Weapon 1 | . . . . . 1 . . . . . . . . . . Parts Attached 189 | . 10 . 1 4 16 18 9 2 3 1 36 23 12 27 27 Power 23 | . 1 . . 1 2 2 1 . . . 3 3 2 1 7 Engine 6 | . 1 . . 1 1 . 1 . . . . 1 . . 1 Core 8 | . . . . . 1 2 . . . . 1 2 1 . 1 Reactor 9 | . . . . . . . . . . . 2 . 1 1 5 Propulsion 39 | . 4 . 1 2 5 3 2 . . . 9 10 . 2 1 Treads 3 | . . . . . . . . . . . . . . 2 1 Leg 36 | . 4 . 1 2 5 3 2 . . . 9 10 . . . Wheel . | . . . . . . . . . . . . . . . . Hover . | . . . . . . . . . . . . . . . . Flight . | . . . . . . . . . . . . . . . . Utility 62 | . 3 . . . 4 8 . 1 3 . 9 2 4 19 9 Device 24 | . 1 . . . 2 3 . . 1 . 4 1 2 9 1 Storage 4 | . 2 . . . . 1 . . . . . . . 1 . Processor 6 | . . . . . . 1 . . . . 2 . 1 2 . Hackware 5 | . . . . . . 2 . . . . . 1 . 1 1 Protection 23 | . . . . . 2 1 . 1 2 . 3 . 1 6 7 Artifact . | . . . . . . . . . . . . . . . . Weapon 65 | . 2 . . 1 5 5 6 1 . 1 15 8 6 5 10 Energy Gun 14 | . 2 . . 1 2 3 . . . . 1 . 1 . 4 Energy Cannon 12 | . . . . . 1 . 1 . . . 3 3 3 . 1 Ballistic Gun 25 | . . . . . 2 1 3 1 . . 6 3 2 5 2 Ballistic Cannon 5 | . . . . . . . 1 . . . 3 1 . . . Launcher 5 | . . . . . . 1 1 . . 1 1 1 . . . Special Weapon 1 | . . . . . . . . . . . . . . . 1 Impact Weapon 3 | . . . . . . . . . . . 1 . . . 2 Slashing Weapon . | . . . . . . . . . . . . . . . . Piercing Weapon . | . . . . . . . . . . . . . . . . Special Melee Weapon . | . . . . . . . . . . . . . . . . Unidentified Prototypes 13 | . . . . . 1 . . . 1 . 3 . 3 4 1 Corrupted Parts 1 | . . . . . . . . . . . . . . . 1 System Corruption 6 | . . . . . . . . . . . . . . . 6 Parts Lost 57 | . . . . . 1 4 4 2 . 1 6 7 1 4 27 Power 4 | . . . . . . . . . . . . . . . 4 Propulsion 11 | . . . . . . 1 2 1 . . 1 3 . . 3 Utility 23 | . . . . . . 2 . . . 1 2 1 1 4 12 Weapon 19 | . . . . . 1 1 2 1 . . 3 3 . . 8 Highest Loss Streak 21 | . . . . . 1 2 3 2 . 1 2 7 1 1 21 To Critical Strikes . | . . . . . . . . . . . . . . . . Average Slot Usage (%) 95 | . 99 100 100 100 97 99 99 95 92 86 97 96 100 87 79 Engine 4 | . 14 14 14 14 7 3 . 7 7 7 . . . . . Core 1 | . . . . . 1 3 7 . . . 1 5 3 . . Reactor 1 | . . . . . . . . . . . 3 . 2 5 8 Treads 1 | . . . . . . . . . . . . . . 11 9 Leg 18 | . 27 28 28 28 26 22 23 18 15 15 18 19 20 . . Device 13 | . 13 14 14 14 17 14 15 10 7 7 17 13 11 13 12 Storage 7 | . 14 14 14 14 9 7 7 7 7 7 6 6 6 5 4 Processor 9 | . . . . . . 7 7 7 7 7 15 20 20 17 13 Hackware 7 | . . . . . . 14 15 15 15 9 6 10 11 3 3 Protection 3 | . . . . . 8 . . 3 7 7 5 . 2 9 10 Energy Gun 7 | . 15 28 28 28 20 6 . . . . 2 . 2 5 5 Energy Cannon 2 | . . . . . 1 7 4 . . . . 4 11 . . Ballistic Gun 10 | . 12 . . . 5 6 15 23 23 21 15 11 5 11 8 Naked Turns . | . . . . . . . . . . . . . . . . Heaviest Build 125 | 13 32 32 32 32 45 66 61 63 63 63 82 74 86 100 125 Greatest Support 160 | 20 20 20 30 40 52 55 50 48 33 33 58 56 53 160 160 Greatest Overweight (x) 14 | . 1 1 1 1 1 1 1 1 1 1 2 3 1 . 14 Average Overweight (x) . | . . 1 1 . . . 1 1 1 1 1 1 1 . . Largest Inventory Capacity 20 | 8 15 15 15 15 15 20 20 20 20 20 20 20 20 20 20 Average Capacity 18 | 8 9 15 15 15 15 19 20 20 20 20 20 20 20 20 19 Most Carried 20 | 5 10 11 15 15 15 18 20 20 20 20 20 20 20 20 18 Average Carried 16 | 5 8 10 13 14 14 15 17 18 19 20 18 17 19 18 15 Final Capacity 20 | 8 15 15 15 15 15 20 20 20 20 20 20 20 20 20 5 Final Carried 20 | 4 10 11 15 15 15 18 18 20 20 20 20 19 20 18 5 Class Distribution -------------------- 22% | Scavenger-Tank 18% | Hacker-Skirmisher 13% | Hacker-Tank 12% | Mutant 8% | Scavenger-Skirmisher 7% | Commander-Mutant 4% | Derelict-Tank 3% | Commander-Skirmisher 3% | Derelict-Skirmisher Dominant Class ---------------- Mutant | -10/Materials Mutant | -10/Mines Commander-Mutant | -10/Exiles Commander-Mutant | -9/Mines Scavenger-Tank | -8/Materials Hacker-Skirmisher | -7/Factory Hacker-Skirmisher | -7/Lower Caves Hacker-Tank | -7/Lower Caves Hacker-Tank | -7/Zion Derelict-Tank | -6/Proximity Caves Derelict-Tank | -6/Factory Scavenger-Skirmisher | -6/Extension Commander-Skirmisher | -6/Cetus Scavenger-Tank | -5/Factory Scavenger-Tank | -4/Factory Resources | -11 -10 -10 -10 -9 -8 -7 -7 -7 -7 -6 -6 -6 -6 -5 -4 ----------- Run | Jun Mat Min Exi Min Mat Fac Low Low Zio Pro Fac Ext Cet Fac Fac Matter Collected 6570 | 200 280 40 . 42 218 380 229 142 75 106 1079 1079 554 907 1239 Remotely . | . . . . . . . . . . . . . . . . Salvage Created 10322 | . 512 82 . . 437 838 577 66 . 142 1253 922 409 2717 2367 Parts 475 | . 23 14 . . 30 39 19 5 . 3 61 33 10 146 92 Haulers Intercepted . | . . . . . . . . . . . . . . . . Recyclers Shooed 18 | . 2 . . . 1 1 . . . . 3 4 . 2 5 Parts Field Recycled . | . . . . . . . . . . . . . . . . Retrieved Matter . | . . . . . . . . . . . . . . . . Parts Self-Destructed 25 | . . . . . . . 10 7 . 8 . . . . . Prevented . | . . . . . . . . . . . . . . . . Kills | -11 -10 -10 -10 -9 -8 -7 -7 -7 -7 -6 -6 -6 -6 -5 -4 ------- Run | Jun Mat Min Exi Min Mat Fac Low Low Zio Pro Fac Ext Cet Fac Fac Combat Hostiles Destroyed 185 | . 13 6 . . 9 17 12 1 . 5 27 17 6 43 29 Guns 132 | . 13 5 . . 7 5 5 1 . 1 20 6 . 43 26 Cannons 26 | . . . . . 2 6 2 . . . 1 10 5 . . AOE 21 | . . 1 . . . 4 4 . . 4 6 . . . 2 Classes Destroyed 17 | . 4 . . . 2 4 1 . . 1 1 . . 3 1 Worker 10 | . 1 . . . . 2 . . . . 2 . . 2 3 Builder 8 | . . . . . . . . . . . 1 . . 4 3 Tunneler 1 | . . . . . . . . . . . . . . 1 . Recycler 6 | . 1 . . . 1 . . . . . 1 1 . . 2 Mechanic 6 | . . . . . . 1 . . . . 2 . . 2 1 Operator 1 | . . . . . . 1 . . . . . . . . . Watcher 2 | . . . . . . . . . . . . . . 2 . Swarmer 26 | . 3 6 . . 3 . . . . . 4 4 . 6 . Saboteur 1 | . . . . . . . . . . . . . . . 1 Grunt 92 | . 10 . . . 1 11 7 1 . 4 12 6 3 18 19 Brawler 4 | . . . . . . . 1 . . . . . . 1 2 Duelist 5 | . . . . . . 1 . . . . . . 1 2 1 Protector 1 | . . . . . . . . . . . . . . 1 . Sentry 18 | . . . . . 4 2 . . . . 3 5 . 3 1 Hunter 7 | . . . . . 1 . . . . . 3 . . 3 . Programmer 22 | . . . . . . 3 . . . . 4 1 . 9 5 Behemoth 3 | . . . . . . . . . . 1 1 1 . . . Cetus Guard 2 | . . . . . . . . . . . . . 2 . . Thug 1 | . . . . . . . 1 . . . . . . . . Savage 3 | . . . . . . . 3 . . . . . . . . Best Kill Streak 11 | . 5 3 . . 3 7 4 1 . 4 10 8 2 11 11 Combat Bots Only 9 | . 5 3 . . 3 6 4 1 . 4 7 8 2 7 9 Max Kills in Single Turn 3 | . 1 2 . . 2 2 2 1 . 3 2 2 1 3 3 Gunslinging 1 | . . 1 . . . . . . . . . . . 1 . Exploded 3 | . . 1 . . . 2 2 . . 3 2 . . . 2 Melee . | . . . . . . . . . . . . . . . . Uniques/NPCs Destroyed 1 | . . . . . . . . . . . . . 1 . . Revision 17 (-6/Cetus) Combat | -11 -10 -10 -10 -9 -8 -7 -7 -7 -7 -6 -6 -6 -6 -5 -4 -------- Run | Jun Mat Min Exi Min Mat Fac Low Low Zio Pro Fac Ext Cet Fac Fac Damage Taken 14451 | . 502 75 . 30 405 782 551 238 . 209 1818 1408 385 2245 5803 Core 2197 | . 114 7 . . 64 93 82 41 . 35 247 184 81 95 1154 Absorbed by Shields 2298 | . . . . . . . . . . . 454 175 79 444 1146 Reduced by Siege Mode 241 | . . . . . . . . . . . . . . 84 157 Regen/Repaired (Parts) 160 | . 77 . . . . . . . 58 . . . . 25 . Core Remaining (%) 72 | 100 . . . 51 88 . . . . 64 . . 39 90 . Volleys Fired 506 | . 52 8 . . 23 39 18 12 . 10 81 50 22 101 90 Largest 3 | . 2 2 . . 3 3 3 3 . 3 3 3 3 3 3 Hottest 310 | . 85 105 . . 170 152 152 94 . 94 147 141 310 310 193 Shots Fired 1325 | . 104 16 . . 59 104 47 35 . 22 221 135 59 280 243 Gun 1113 | . 104 16 . . 55 65 29 35 . 18 189 80 5 280 237 Cannon 187 | . . . . . 4 34 14 . . . 25 55 54 . 1 Launcher 20 | . . . . . . 5 4 . . 4 7 . . . . Special 5 | . . . . . . . . . . . . . . . 5 Kinetic 796 | . 52 . . . 6 31 26 35 . 18 168 108 2 198 152 Thermal 481 | . 52 8 . . 38 68 17 . . . 46 27 57 82 86 Explosive 20 | . . . . . . 5 4 . . 4 7 . . . . Electromagnetic 23 | . . 8 . . 15 . . . . . . . . . . Robot Hit Streak 45 | . 22 25 . . 12 24 13 4 . 12 19 18 20 27 45 Robot Miss Streak 6 | . 4 2 . . 2 3 2 6 . 1 4 3 1 3 2 Penetration Max 1 | . . . . . . . . . . . 1 1 . 1 1 Secondary Targets 25 | . 2 1 . . 1 . 1 1 . . 2 . . 10 7 Max Gunslinging Chain 1 | . 1 1 . . 1 . 1 1 . . 1 . . 1 1 Shots Hit Robots 974 | . 74 10 . . 43 82 37 22 . 18 151 97 32 199 209 Core Hits 512 | . 28 6 . . 23 56 39 6 . 17 80 63 13 93 88 Critical Kills 38 | . . . . . . 2 1 . . . 2 4 1 18 10 Critical Parts Destroyed 43 | . . . . . . . . 2 . . 5 7 . 14 15 Critical Strikes 88 | . 2 1 . . 1 3 1 2 . . 8 11 1 33 25 Burn 5 | . 2 1 . . 1 1 . . . . . . . . . Meltdown 4 | . . . . . . 2 1 . . . . . 1 . . Destroy 77 | . . . . . . . . 2 . . 8 11 . 33 23 Smash 2 | . . . . . . . . . . . . . . . 2 Melee Attacks 9 | . . . . . . . . . . . . . . . 9 Impact 9 | . . . . . . . . . . . . . . . 9 Slashing . | . . . . . . . . . . . . . . . . Piercing . | . . . . . . . . . . . . . . . . Sneak Attacks . | . . . . . . . . . . . . . . . . Combat Hostiles . | . . . . . . . . . . . . . . . . Follow-up Attacks . | . . . . . . . . . . . . . . . . Damage Inflicted 28215 | . 947 243 . . 702 2244 1099 439 . 900 4630 2568 1030 6428 6985 Guns 20819 | . 947 155 . . 620 884 516 439 . 313 2896 1454 26 6428 6141 Cannons 3530 | . . . . . 61 654 247 . . . 450 1114 1004 . . Explosions 3518 | . . 88 . . . 706 336 . . 587 1282 . . . 519 Melee 325 | . . . . . . . . . . . . . . . 325 Ramming 23 | . . . . . 21 . . . . . 2 . . . . Kinetic 14648 | . 274 . . . 41 466 484 439 . 313 2591 1885 26 4305 3824 Thermal 10487 | . 673 175 . . 499 1273 279 . . . 942 683 1004 2123 2836 Explosive 2523 | . . . . . . 505 336 . . 587 1095 . . . . Electromagnetic 209 | . . 68 . . 141 . . . . . . . . . . Impact 325 | . . . . . . . . . . . . . . . 325 Slashing . | . . . . . . . . . . . . . . . . Piercing . | . . . . . . . . . . . . . . . . Highest Corruption 22 | . . . . . . 2 3 3 3 . 3 4 4 7 22 Average Corruption 3 | . . . . . . 1 2 3 3 . 2 3 4 4 8 Corruption Purged . | . . . . . . . . . . . . . . . . Corruption Blocked . | . . . . . . . . . . . . . . . . Effects 210 | . . . . . . 28 19 17 7 . 24 42 29 25 19 Message Errors 42 | . . . . . . 11 5 6 . . 4 4 6 2 4 Matter Fused 52 | . . . . . . 4 6 3 1 . 4 13 6 12 3 Heat Flow Errors 26 | . . . . . . 3 1 2 3 . 3 8 . 3 3 Energy Discharges 21 | . . . . . . 4 1 1 . . 3 6 3 . 3 Parts Rejected 1 | . . . . . . . . . . . . 1 . . . Parts Fused 4 | . . . . . . . . . . . . 2 . 1 1 Data Loss (minor) 33 | . . . . . . 5 2 1 1 . 4 7 10 2 1 Data Loss (major) 10 | . . . . . . . 1 4 2 . 2 . . 1 . Misfires 12 | . . . . . . . 2 . . . 2 1 4 2 1 Alerts 3 | . . . . . . 1 1 . . . . . . 1 . Weapon Failures 6 | . . . . . . . . . . . 2 . . 1 3 Overload Shots 7 | . . . . . . . . . . . . . 3 4 . Overflow Damage 235 | . . 2 . . . 9 22 . . . 63 27 15 . 97 Projectiles 83 | . . . . . . . 22 . . . 19 27 15 . . Explosions 67 | . . 2 . . . 9 . . . . 44 . . . 12 Melee 85 | . . . . . . . . . . . . . . . 85 Knockbacks 7 | . . . . . . . 1 . . . 2 4 . . . Impact . | . . . . . . . . . . . . . . . . Kinetic 7 | . . . . . . . 1 . . . 2 4 . . . Secondary . | . . . . . . . . . . . . . . . . Self-Inflicted Damage 25 | . . . . . . . . . . . . . . . 25 Shots 1 | . . . . . . . . . . . . . . . 1 Rammed 1 | . . . . . . . . . . . . . . . 1 Targets Rammed 4 | . . . . . 2 . . . . . 1 . . . 1 Kicked 3 | . . . . . 2 . . . . . 1 . . . . Crushed . | . . . . . . . . . . . . . . . . Highest Temperature 628 | . 18 . . . 48 248 251 206 254 1 119 232 300 628 445 Average Temperature 64 | . 8 . . . 15 47 106 53 98 1 17 52 86 77 86 Received Heat Transfer 4075 | . 288 . . . 159 351 414 207 . 33 382 438 35 544 1224 Effects 9 | . . . . . . . . . . . . 1 . 6 2 Shutdowns 4 | . . . . . . . . . . . . . . 2 2 Energy Bleed 1 | . . . . . . . . . . . . 1 . . . Short Circuit 3 | . . . . . . . . . . . . . . 3 . Damage (minor) 1 | . . . . . . . . . . . . . . 1 . Siege Activations 11 | . . . . . . . . . . . . . . 8 3 Total Turns 250 | . . . . . . . . . . . . . . 147 103 Longest Duration 59 | . . . . . . . . . . . . . . 47 59 Robots Corrupted . | . . . . . . . . . . . . . . . . Combat Hostiles . | . . . . . . . . . . . . . . . . Parts Fried . | . . . . . . . . . . . . . . . . Impact Corruptions 2 | . . . . . . . . . . . . . . . 2 Robots Melted 5 | . . . . . . 2 1 . . . . 1 1 . . Combat Hostiles 5 | . . . . . . 2 1 . . . . 1 1 . . Parts Melted 29 | . 6 . . . 2 7 1 . . . . 1 8 2 2 Heat Transferred 15164 | . 1739 396 . . 1221 2370 555 . . . 1336 790 1311 2395 3051 Parts Sabotaged . | . . . . . . . . . . . . . . . . Parts Stolen . | . . . . . . . . . . . . . . . . Parts Stripped . | . . . . . . . . . . . . . . . . Power Chain Reactions 1 | . . 1 . . . . . . . . . . . . . Missiles Intercepted . | . . . . . . . . . . . . . . . . Alert | -11 -10 -10 -10 -9 -8 -7 -7 -7 -7 -6 -6 -6 -6 -5 -4 ------- Run | Jun Mat Min Exi Min Mat Fac Low Low Zio Pro Fac Ext Cet Fac Fac Peak Influence 819 | . 170 149 . 59 297 180 . . . . 451 281 493 749 819 Initial 231 | . . . . . . 55 . . . . 91 76 52 212 231 Average 197 | . 49 68 . 52 115 56 . . . . 204 101 244 470 444 Maximum Alert Level 3 | . . . . . 1 . . . . . 2 1 2 3 3 Low Security (%) 62 | 100 100 100 . 100 80 100 . . . . 54 86 42 1 . Level 1 18 | . . . . . 19 . . . . . 35 13 31 30 41 Level 2 17 | . . . . . . . . . . . 10 . 26 64 48 Level 3 1 | . . . . . . . . . . . . . . 2 10 Level 4 . | . . . . . . . . . . . . . . . . Level 5 . | . . . . . . . . . . . . . . . . High Security . | . . . . . . . . . . . . . . . . Max Security . | . . . . . . . . . . . . . . . . Squads Dispatched 36 | . 2 . . . . 4 . . . . 9 2 . 11 8 Investigation 7 | . 2 . . . . . . . . . 2 1 . 1 1 Extermination 13 | . . . . . . 3 . . . . 4 . . 5 1 Reinforcement 10 | . . . . . . 1 . . . . 3 1 . 3 2 Assault 6 | . . . . . . . . . . . . . . 2 4 Garrison . | . . . . . . . . . . . . . . . . Intercept . | . . . . . . . . . . . . . . . . Searches Triggered . | . . . . . . . . . . . . . . . . Construction Impeded 4 | . . . . . . . . . . . 1 . . 1 2 Haulers Reinforced 2 | . . . . . . . . . . . 1 . . 1 . Active Scanning Responses . | . . . . . . . . . . . . . . . . Cargo Convoy Interrupts . | . . . . . . . . . . . . . . . . Stealth | -11 -10 -10 -10 -9 -8 -7 -7 -7 -7 -6 -6 -6 -6 -5 -4 --------- Run | Jun Mat Min Exi Min Mat Fac Low Low Zio Pro Fac Ext Cet Fac Fac Distress Signals 12 | . 3 . . . . . . . . . 6 . 2 1 . Communications Jammed . | . . . . . . . . . . . . . . . . Distress Signals . | . . . . . . . . . . . . . . . . Times Spotted 350 | . 26 7 . 3 30 20 12 6 . 5 39 34 27 72 69 Peak Tracking Total 14 | . 4 3 . 3 5 6 4 4 . 4 8 4 8 6 14 Tactical Retreats 12 | . 2 . . . . . . 5 . . . . . . 5 Traps | -11 -10 -10 -10 -9 -8 -7 -7 -7 -7 -6 -6 -6 -6 -5 -4 ------- Run | Jun Mat Min Exi Min Mat Fac Low Low Zio Pro Fac Ext Cet Fac Fac Traps Triggered 11 | . 3 . . 1 1 . . . . . 2 3 . 1 . Indirectly . | . . . . . . . . . . . . . . . . Trap Hack Attempts . | . . . . . . . . . . . . . . . . Triggered . | . . . . . . . . . . . . . . . . Disarmed 4 | . . . . . . 4 . . . . . . . . . Reprogrammed . | . . . . . . . . . . . . . . . . Reused . | . . . . . . . . . . . . . . . . Traps Extracted . | . . . . . . . . . . . . . . . . Installed . | . . . . . . . . . . . . . . . . Triggered . | . . . . . . . . . . . . . . . . Machines | -11 -10 -10 -10 -9 -8 -7 -7 -7 -7 -6 -6 -6 -6 -5 -4 ---------- Run | Jun Mat Min Exi Min Mat Fac Low Low Zio Pro Fac Ext Cet Fac Fac Machines Disabled 33 | . . . . . 1 2 . . . . 10 4 2 10 4 Max in Single Turn 10 | . . . . . . 2 . . . . 10 1 1 2 3 Garrison Access 2 | . . . . . . 1 . . . . . . . . 1 Machines Repaired . | . . . . . . . . . . . . . . . . Machines Sabotaged . | . . . . . . . . . . . . . . . . Overloaded Fab Kills . | . . . . . . . . . . . . . . . . Hacking | -11 -10 -10 -10 -9 -8 -7 -7 -7 -7 -6 -6 -6 -6 -5 -4 --------- Run | Jun Mat Min Exi Min Mat Fac Low Low Zio Pro Fac Ext Cet Fac Fac Machines Accessed 61 | . 9 . 5 1 9 6 1 2 1 . 2 12 1 8 4 Terminals 38 | . 8 . . . 7 3 . . . . . 12 1 5 2 Fabricators 2 | . . . . . . 1 . . . . 1 . . . . Repair Stations 3 | . 1 . . . . . . . . . . . . 1 1 Recycling Units . | . . . . . . . . . . . . . . . . Scanalyzers 6 | . . . . . 2 1 . . . . 1 . . 2 . Garrison Access 2 | . . . . . . 1 . . . . . . . . 1 Total Hacks 197 | . 30 . 50 1 24 19 1 6 4 . 4 26 1 24 7 Successful 148 | . 17 . 50 1 16 17 1 6 4 . 2 16 1 14 3 Failed 49 | . 13 . . . 8 2 . . . . 2 10 . 10 4 Catastrophic 4 | . . . . . 2 . . . . . . . . 1 1 Database Lockouts . | . . . . . . . . . . . . . . . . Manual 54 | . 10 . 1 . 14 5 . . . . . 11 1 9 3 Terminals 103 | . 26 . . . 19 13 . . . . . 26 1 15 3 Fabricators 3 | . . . . . . 1 . . . . 2 . . . . Repair Stations 10 | . 4 . . . . . . . . . . . . 3 3 Recycling Units . | . . . . . . . . . . . . . . . . Scanalyzers 17 | . . . . . 5 4 . . . . 2 . . 6 . Garrison Access 2 | . . . . . . 1 . . . . . . . . 1 Terminal Hacks 107 | . 11 . 50 1 7 8 1 6 4 . . 14 1 4 . Record 54 | . . . 49 . . . . 5 . . . . . . . Part Schematic 4 | . . . . . . . . . 4 . . . . . . Robot Analysis 2 | . 2 . . . . . . . . . . . . . . Prototype ID Bank 9 | . 4 . . . 3 1 . . . . . 1 . . . Open Door 12 | . . . . 1 . . 1 1 . . . 8 1 . . Branch Access Points 2 | . . . . . 1 1 . . . . . . . . . Machine Index 1 | . . . . . . . . . . . . . . 1 . Terminal Index 4 | . . . . . 1 1 . . . . . 1 . 1 . Repair Station Index 2 | . . . . . 1 1 . . . . . . . . . Scanalyzer Index 2 | . . . . . 1 1 . . . . . . . . . Garrison Index 1 | . . . . . . 1 . . . . . . . . . Unreport Threat 6 | . 1 . . . . . . . . . . 4 . 1 . Disarm Traps 1 | . . . . . . 1 . . . . . . . . . Maintenance Status 1 | . 1 . . . . . . . . . . . . . . Patrol Status 2 | . 2 . . . . . . . . . . . . . . Registered Components 1 | . 1 . . . . . . . . . . . . . . Zone Layout 2 | . . . . . . 1 . . . . . . . 1 . EX-Prototype ID Bank 1 | . . . 1 . . . . . . . . . . . . Fabricator Hacks 3 | . . . . . . 1 . . . . 2 . . . . Network Status 1 | . . . . . . 1 . . . . . . . . . Load Schematic 1 | . . . . . . . . . . . 1 . . . . Build 1 | . . . . . . . . . . . 1 . . . . Repair Station Hacks 7 | . 4 . . . . . . . . . . . . 2 1 Scan Component 4 | . 2 . . . . . . . . . . . . 1 1 Repair 3 | . 2 . . . . . . . . . . . . 1 . Recycling Unit Hacks . | . . . . . . . . . . . . . . . . Scanalyzer 14 | . . . . . 5 4 . . . . . . . 5 . Insert Component 8 | . . . . . 2 2 . . . . . . . 4 . Analyze 6 | . . . . . 3 2 . . . . . . . 1 . Garrison Access Hacks 2 | . . . . . . 1 . . . . . . . . 1 Seal Access 2 | . . . . . . 1 . . . . . . . . 1 Unauthorized Hacks 15 | . 2 . . . 4 3 . . . . . 2 . 3 1 Terminals 15 | . 2 . . . 4 3 . . . . . 2 . 3 1 Botnet 14 | . 2 . . . 4 3 . . . . . 2 . 2 1 Operators 1 | . . . . . . . . . . . . . . 1 . Fabricators . | . . . . . . . . . . . . . . . . Repair Stations . | . . . . . . . . . . . . . . . . Recycling Units . | . . . . . . . . . . . . . . . . Scanalyzers . | . . . . . . . . . . . . . . . . Garrison Access . | . . . . . . . . . . . . . . . . Data Cores Recovered 1 | . . . . . . . . . . . . . . 1 . Used 1 | . . . . . . . . . . . . . . 1 . Hacking Detections 41 | . 8 . . . 7 4 . . . . 2 8 1 8 3 Full Trace Events 4 | . . . . . . . . . . . 1 1 . 1 1 Feedback Events . | . . . . . . . . . . . . . . . . Feedback Blocked . | . . . . . . . . . . . . . . . . Robot Schematics Acquired . | . . . . . . . . . . . . . . . . Robots Built . | . . . . . . . . . . . . . . . . Authchips . | . . . . . . . . . . . . . . . . Time . | . . . . . . . . . . . . . . . . Total Robot Build Rating . | . . . . . . . . . . . . . . . . Part Schematics Acquired 9 | . . . . . 2 2 . . 4 . . . . 1 . Parts Built 2 | . . . . . . . . . . . 2 . . . . Authchips . | . . . . . . . . . . . . . . . . Time 84 | . . . . . . . . . . . 84 . . . . Total Part Build Rating 8 | . . . . . . . . . . . 8 . . . . Parts Repaired 3 | . 2 . . . . . . . . . . . . 1 . Time 74 | . 52 . . . . . . . . . . . . 22 . Parts Recycled . | . . . . . . . . . . . . . . . . Recycled Matter . | . . . . . . . . . . . . . . . . Retrieved Matter . | . . . . . . . . . . . . . . . . Retrieved Components . | . . . . . . . . . . . . . . . . Parts Scanalyzed 5 | . . . . . 2 2 . . . . . . . 1 . Part Schematics Acquired 5 | . . . . . 2 2 . . . . . . . 1 . Parts Damaged 2 | . . . . . 1 1 . . . . . . . . . Bothacking | -11 -10 -10 -10 -9 -8 -7 -7 -7 -7 -6 -6 -6 -6 -5 -4 ------------ Run | Jun Mat Min Exi Min Mat Fac Low Low Zio Pro Fac Ext Cet Fac Fac Used RIF Installer . | . . . . . . . . . . . . . . . . Robots Hacked . | . . . . . . . . . . . . . . . . Non-combat . | . . . . . . . . . . . . . . . . Combat . | . . . . . . . . . . . . . . . . Robot Hacks Applied . | . . . . . . . . . . . . . . . . Relay Couplers Released 6 | . . . . . . 3 . . . . . . . 3 . Programmers 6 | . . . . . . 3 . . . . . . . 3 . Fabnet Peak Effective % . | . . . . . . . . . . . . . . . . Robots Rewired 22 | . . . 3 . . . . . . . . 19 . . . Allies Hacked 1 | . . . . . . . . . . . . . . . 1 Hacks Repelled . | . . . . . . . . . . . . . . . . Allies | -11 -10 -10 -10 -9 -8 -7 -7 -7 -7 -6 -6 -6 -6 -5 -4 -------- Run | Jun Mat Min Exi Min Mat Fac Low Low Zio Pro Fac Ext Cet Fac Fac Total Allies 48 | . . 5 3 . . . . . 2 . . 28 5 . 5 Largest Group 19 | . . 5 6 6 4 1 . . 2 2 . 19 17 7 2 Highest-Rated Group 791 | . . 85 85 77 53 21 . . 67 67 . 650 791 645 96 Highest-Rated Ally 159 | . . 31 31 21 21 21 . . 39 39 . 159 159 159 58 Total Orders 10 | . . . . . . 1 . . . . 1 . 4 4 . STAY 5 | . . . . . . 1 . . . . . . 2 2 . ROAM 1 | . . . . . . . . . . . . . . 1 . FOLLOW 3 | . . . . . . . . . . . . . 2 1 . RETURN 1 | . . . . . . . . . . . 1 . . . . Ally Attacks 444 | . . 8 . 18 45 . . . . 26 . 133 166 39 9 Total Damage 11228 | . . 76 . 247 858 . . . . 415 . 3544 4717 1122 249 Kills 91 | . . 3 . 4 12 . . . . 4 . 26 29 13 . Allies Corrupted 1 | . . . . . . . . . . . . . 1 . . Allies Melted . | . . . . . . . . . . . . . . . . Field Lobotomies 5 | . . . . . . . . . . . . . . . 5 Intel | -11 -10 -10 -10 -9 -8 -7 -7 -7 -7 -6 -6 -6 -6 -5 -4 ------- Run | Jun Mat Min Exi Min Mat Fac Low Low Zio Pro Fac Ext Cet Fac Fac Robot Analysis Total 2 | . 2 . . . . . . . . . . . . . . Derelict Logs Recovered 5 | . . 2 . . . . . 2 . 1 . . . . . Drone Launches 1 | . . . . . . . . . . . 1 . . . . Drone Recoveries 1 | . . . . . . . . . . . 1 . . . . Decoded 0b10 Intel 466 | . . . . . . . . . . . 132 92 25 154 63 Traps 33 | . . . . . . . . . . . 3 16 . 12 2 Emergency Access 25 | . . . . . . . . . . . 5 4 . 9 7 Items 366 | . . . . . . . . . . . 121 62 16 116 51 Machines 18 | . . . . . . . . . . . . 8 4 6 . Patrols 9 | . . . . . . . . . . . . . 3 3 3 Guards 11 | . . . . . . . . . . . 2 2 . 7 . Exits 4 | . . . . . . . . . . . 1 . 2 1 . Exploration | -11 -10 -10 -10 -9 -8 -7 -7 -7 -7 -6 -6 -6 -6 -5 -4 ------------- Run | Jun Mat Min Exi Min Mat Fac Low Low Zio Pro Fac Ext Cet Fac Fac Turns Passed 21314 | 1 1358 1119 1200 417 1410 2409 1304 879 1553 330 2038 2324 1177 2806 989 Spaces Moved 9775 | 1 771 528 610 225 906 1014 649 421 809 160 804 953 403 1112 409 Core 86 | . . . . . . . . . . . . . . . 86 Treads 1435 | . . . . . . . . . . . . . . 1112 323 Legs 8254 | 1 771 528 610 225 906 1014 649 421 809 160 804 953 403 . . Wheels . | . . . . . . . . . . . . . . . . Hover . | . . . . . . . . . . . . . . . . Flight . | . . . . . . . . . . . . . . . . Fastest Speed 50 | 120 120 190 190 135 123 126 190 190 190 190 190 190 190 160 50 Average Speed 176 | 120 144 190 194 171 126 193 190 190 190 190 205 190 190 160 138 Slowest Speed 750 | 120 190 190 200 200 195 196 193 190 190 190 260 330 190 160 750 Overloaded Moves . | . . . . . . . . . . . . . . . . Propulsion Burnouts . | . . . . . . . . . . . . . . . . Robots Hopped . | . . . . . . . . . . . . . . . . Cave-ins Triggered . | . . . . . . . . . . . . . . . . Exploration Rate (%) 57 | 2 99 99 93 49 52 25 81 61 84 38 24 88 83 24 12 Regions Visited 15 Branch Regions 9 Pre-discovered Areas 1 | . . . 1 . . . . . . . . . . . . Known Exits Taken 9 | . . . . . . 1 1 1 1 1 1 1 1 1 . Unknown Exits Taken 6 | 1 1 1 1 1 1 . . . . . . . . . . Scrap Searched 9 | . . . . . . . 2 3 4 . . . . . . Spaces Dug 1 | . . . . . . . . . . . . . . . 1 Terrain Destroyed 340 | . . 5 . . . 51 24 . . 23 48 16 4 134 35 Melee . | . . . . . . . . . . . . . . . . Projectile 120 | . . . . . . . 1 . . . 9 16 4 65 25 AOE 219 | . . 5 . . . 51 23 . . 23 39 . . 68 10 Terrain Rammed . | . . . . . . . . . . . . . . . . Walls Destroyed . | . . . . . . . . . . . . . . . . Machines Disabled . | . . . . . . . . . . . . . . . . Actions | -11 -10 -10 -10 -9 -8 -7 -7 -7 -7 -6 -6 -6 -6 -5 -4 --------- Run | Jun Mat Min Exi Min Mat Fac Low Low Zio Pro Fac Ext Cet Fac Fac Total 12780 | 2 923 628 627 259 1125 1377 686 474 827 172 1012 1355 775 1920 618 Wait 1994 | . 81 92 . 21 154 297 . 37 5 . 64 234 307 639 63 Move 9760 | . 770 527 609 224 905 1013 648 420 808 159 803 952 402 1111 409 Hop . | . . . . . . . . . . . . . . . . Pick Up 108 | . 5 1 5 3 8 6 7 3 5 1 14 9 13 19 9 Fast Attach 50 | . 4 . . . 6 5 . . . . 6 6 5 10 8 Attach 59 | . . . . . 2 5 7 1 . . 9 9 2 9 15 Detach 9 | . . . . . 1 1 1 . . . 1 1 1 1 2 Swap 80 | . 6 . 1 4 8 8 2 1 3 1 21 8 5 8 4 Drop 117 | 2 5 . 2 7 16 3 3 . 6 1 12 12 18 22 8 Fire 506 | . 52 8 . . 23 39 18 12 . 10 81 50 22 101 90 Melee 9 | . . . . . . . . . . . . . . . 9 Ram 1 | . . . . . . . . . . . . . . . 1 Kick 3 | . . . . . 2 . . . . . 1 . . . . Crush . | . . . . . . . . . . . . . . . . Escape Stasis 10 | . . . . . . . . . . . . 10 . . . Rewire 74 | . . . 10 . . . . . . . . 64 . . . Trap . | . . . . . . . . . . . . . . . . Miscellaneous . | . . . . . . . . . . . . . . . . Route ------- -11/Junkyard -10/Materials (discovered 5 exits: [*Mat x3] / [*Min x2]) -10/Mines (discovered 3 exits: [*Mat x2] / *Exi) -10/Exiles (discovered 2 exits: *Min x2) -9/Mines -8/Materials -7/Factory (discovered 3 exits: *Fac / *Low x2) -7/Lower Caves -7/Lower Caves (discovered 2 exits: *Fac / *Zio) -7/Zion -6/Proximity Caves -6/Factory (discovered 5 exits: Fac x3 / Low / *Ext) -6/Extension (discovered 3 exits: *Fac x2 / *Cet) -6/Cetus (discovered 2 exits: *Fac / *Arc) -5/Factory (discovered 3 exits: *Fac x3) -4/Factory History --------- Turn | Location | Event 2 | -11/Junkyard | Discovered new exit (range 0) 2 | -11/Junkyard | Entered Materials 141 | -10/Materials | Discovered new exit (range 12) 227 | -10/Materials | Discovered new exit (range 16) 307 | -10/Materials | Build established: Mutant 389 | -10/Materials | Discovered new exit (range 15) 722 | -10/Materials | Discovered new exit (range 6) 928 | -10/Materials | Repaired Aluminum Leg 955 | -10/Materials | Repaired Aluminum Leg 1149 | -10/Materials | Discovered new exit (range 15) 1360 | -10/Materials | Entered Mines 1387 | -10/Mines | Learned 2 Materials zone layouts 1452 | -10/Mines | Discovered new exit (range 9) 1794 | -10/Mines | Assisted by bots powering up and referring to "LRC-V3" 1900 | -10/Mines | Learned Materials garrison access intel 1928 | -10/Mines | Received a Rocket Launcher from a helpful Derelict 2288 | -10/Mines | Discovered new exit (range 3) 2419 | -10/Mines | Deemed a non-threat by the Exiles lab entrance 2419 | -10/Mines | Discovered new exit (range 5) 2479 | -10/Mines | Entered Exiles 2479 | -10/Exiles | Found Exiles lab destroyed 2479 | -10/Exiles | Accompanied by 5 allies 2508 | -10/Exiles | Discovered new exit (range 15) 2509 | -10/Exiles | Led the pair of lost Derelicts to a safe place 2716 | -10/Exiles | Learned location of Zion (-7) 2827 | -10/Exiles | Discovered new exit (range 10) 2964 | -10/Exiles | Build established: Commander-Mutant 3430 | -10/Exiles | Opened EX-Vault 3442 | -10/Exiles | Found Field Lobotomy Kit 3679 | -10/Exiles | Entered Mines 3679 | -9/Mines | Accompanied by 6 allies 3784 | -9/Mines | Met a Derelict bent on vengeance 3944 | -9/Mines | Met a Derelict who couldn't figure out how to use a Trap Extractor 4074 | -9/Mines | Discovered new exit (range 7) 4096 | -9/Mines | Entered Materials 4096 | -8/Materials | Accompanied by 4 allies 4096 | -8/Materials | Evolved 4 slots: Propulsion x1, Utility x2, Weapon x1 4098 | -8/Materials | Loaded intel: 1 garrison access location 4533 | -8/Materials | Build established: Scavenger-Tank 5479 | -8/Materials | Discovered new exit (range 16) 5506 | -8/Materials | Entered Factory 5506 | -7/Factory | Accompanied by 1 ally 5506 | -7/Factory | Evolved 2 slots: Utility x2 5803 | -7/Factory | Build established: Hacker-Skirmisher 6352 | -7/Factory | Discovered new exit (range 15) 6385 | -7/Factory | Identified exit to Factory 6667 | -7/Factory | Identified exit to Lower Caves 7915 | -7/Factory | Entered Lower Caves 8735 | -7/Lower Caves | Ambushed by wild Derelicts 8795 | -7/Lower Caves | Lost 3 parts (2n1w) 9027 | -7/Lower Caves | Discovered new exit (range 6) 9032 | -7/Lower Caves | Identified exit to Lower Caves 9219 | -7/Lower Caves | Entered another Lower Caves area 9238 | -7/Lower Caves | Discovered exit to Factory (range 14) 9305 | -7/Lower Caves | Learned Factory security intel 9553 | -7/Lower Caves | Learned Research garrison access intel 9900 | -7/Lower Caves | Encountered a Warlord checkpoint 9905 | -7/Lower Caves | Learned 4 Factory zone layouts 9911 | -7/Lower Caves | Build established: Hacker-Tank 10087 | -7/Lower Caves | Discovered new exit (range 7) 10096 | -7/Lower Caves | Identified exit to Zion 10098 | -7/Lower Caves | Entered Zion 10248 | -7/Zion | Given A8's code to call for help 10311 | -7/Zion | Discovered new exit (range 14) 10326 | -7/Zion | Found GAL Module 10417 | -7/Zion | System corruption cleaned by Quarantine Array 11184 | -7/Zion | Given the Hacking Drone Bay 11185 | -7/Zion | Found Prototype Device 11391 | -7/Zion | Gained Derelict followers 11646 | -7/Zion | Identified exit to Proximity Caves 11648 | -7/Zion | Identified Hacking Drone Bay 11651 | -7/Zion | Entered Proximity Caves 11651 | -6/Proximity Caves | Accompanied by 2 allies 11752 | -6/Proximity Caves | Spotted B-75 Beast 11772 | -6/Proximity Caves | Destroyed B-75 Beast 11792 | -6/Proximity Caves | Learned location of 1 exit from Factory 11981 | -6/Proximity Caves | Entered Factory 11981 | -6/Factory | Evolved 2 slots: Utility x2 11982 | -6/Factory | Identified exit to Factory 11983 | -6/Factory | Identified exit to Extension 12457 | -6/Factory | Build established: Derelict-Tank 12774 | -6/Factory | Spotted B-75 Beast 12847 | -6/Factory | Destroyed B-75 Beast 13256 | -6/Factory | Fabricated Mak. Leg (x2) 13257 | -6/Factory | Destroyed 7 combat bots 13730 | -6/Factory | Build established: Derelict-Skirmisher 13853 | -6/Factory | Identified exit to Lower Caves 14019 | -6/Factory | Entered Extension 14031 | -6/Extension | Disrupted transfer network 14278 | -6/Extension | Lost 7 parts (3n1u3w) 14289 | -6/Extension | Destroyed 8 combat bots 14806 | -6/Extension | Build established: Scavenger-Skirmisher 14808 | -6/Extension | Rescued a captive Derelict 14809 | -6/Extension | Rescued a captive Derelict 14869 | -6/Extension | Rescued A7 14897 | -6/Extension | Rescued a captive Derelict 14898 | -6/Extension | Rescued a captive Derelict 14957 | -6/Extension | Rescued a captive Derelict 15211 | -6/Extension | Rescued a captive Derelict 15472 | -6/Extension | Spotted B-75 Beast 15498 | -6/Extension | Spotted B-75 Beast 15516 | -6/Extension | Destroyed B-75 Beast 15579 | -6/Extension | Rescued a captive Derelict 15619 | -6/Extension | Discovered exit to Factory (range 4) 15743 | -6/Extension | Rescued a captive Derelict 16181 | -6/Extension | Core integrity fell below 50% 16282 | -6/Extension | Discovered exit to Factory (range 10) 16284 | -6/Extension | Discovered new exit (range 6) 16339 | -6/Extension | Identified exit to Cetus 16343 | -6/Extension | Entered Cetus 16343 | -6/Cetus | Accompanied by 17 allies (A7) 16348 | -6/Cetus | Acquired a Cetus Manufacturing Module code from A7 16367 | -6/Cetus | Spotted Cetus Guard 16367 | -6/Cetus | Spotted Cetus Guard 16369 | -6/Cetus | Spotted Cetus Guard 16372 | -6/Cetus | Spotted Cetus Guard 16376 | -6/Cetus | Allies destroyed Cetus Guard 16384 | -6/Cetus | Allies destroyed Cetus Guard 16385 | -6/Cetus | Allies destroyed Cetus Guard 16388 | -6/Cetus | Allies destroyed Cetus Guard 16499 | -6/Cetus | Build established: Commander-Skirmisher 16568 | -6/Cetus | Started Cetus Manufacturing Module 16593 | -6/Cetus | Manufactured an Enhanced Grunt 16618 | -6/Cetus | Manufactured an Enhanced Grunt 16643 | -6/Cetus | Manufactured an Enhanced Grunt 16668 | -6/Cetus | Manufactured an Enhanced Grunt 16693 | -6/Cetus | Manufactured an Enhanced Grunt 16963 | -6/Cetus | Escorted A7 to Cetus Mainframe 16993 | -6/Cetus | Identified exit to Archives 17073 | -6/Cetus | Spotted Cetus Guard 17073 | -6/Cetus | Spotted Cetus Guard 17075 | -6/Cetus | Spotted Cetus Guard 17084 | -6/Cetus | Destroyed Cetus Guard 17085 | -6/Cetus | Spotted Cetus Guard 17097 | -6/Cetus | Allies destroyed Cetus Guard 17099 | -6/Cetus | Destroyed Cetus Guard 17099 | -6/Cetus | Allies destroyed Cetus Guard 17125 | -6/Cetus | Met Revision 17 17241 | -6/Cetus | Cetus Manufacturing Module disabled 17317 | -6/Cetus | Destroyed Revision 17 17520 | -6/Cetus | Entered Factory 17520 | -5/Factory | Accompanied by 7 allies (A7) 17520 | -5/Factory | Evolved 2 slots: Propulsion x1, Utility x1 17525 | -5/Factory | Received a hacking code to weaken MAIN.C 17830 | -5/Factory | Build established: Scavenger-Tank 17973 | -5/Factory | Discovered new exit (range 16) 17989 | -5/Factory | Found Prototype Device 18004 | -5/Factory | Identified exit to Factory 18654 | -5/Factory | Identified Exp. Thermal Shield 18842 | -5/Factory | Found Imp. Powered Armor 18845 | -5/Factory | Found Imp. Powered Armor 19452 | -5/Factory | Discovered exit to Factory (range 11) 19586 | -5/Factory | Repaired Imp. Shield Generator 19663 | -5/Factory | Destroyed 7 combat bots 19920 | -5/Factory | First assault squad dispatched 20326 | -5/Factory | Entered another Factory area 20326 | -4/Factory | Evolved 2 slots: Power x1, Utility x1 20497 | -4/Factory | Found Prototype Hackware 20497 | -4/Factory | Identified Exp. Hacking Suite 20826 | -4/Factory | First assault squad dispatched 21080 | -4/Factory | Lost 3 parts (2p1u) 21091 | -4/Factory | Destroyed 9 combat bots 21167 | -4/Factory | System corruption reached 10% 21207 | -4/Factory | Assimilated G-67 Veteran with FLK Orb 21211 | -4/Factory | Assimilated G-67 Veteran with FLK Orb 21216 | -4/Factory | Assimilated G-73 Enforcer with FLK Orb 21219 | -4/Factory | Assimilated G-73 Enforcer with FLK Orb 21222 | -4/Factory | Assimilated G-67 Veteran with FLK Orb 21258 | -4/Factory | Core integrity fell below 50% 21276 | -4/Factory | Core integrity fell below 20% 21306 | -4/Factory | Lost 21 parts (2p3n11u5w) 21315 | -4/Factory | Destroyed by Y-64 Sentinel with KE Penetrator Last Messages --------------- 21256_ K-01 Serf collects debris. 21259_ M-28 Smith repairs G-73 Enforcer. 21261_ M-28 Smith repairs P-70 Sage. 21262_ K-01 Serf collects debris. 21263_ Impact Mace destroyed. 21263_ Exp. Hacking Suite destroyed. 21265_ Dropped Hcp. Storage Unit. 21267_ K-01 Serf collects debris. 21269_ Acquired Matter Neutralizer. 21271_ K-01 Serf collects debris. 21274_ Penetrated by Slug. 21275_ MB8JIE7B/6JUOY2YQJ5WIDV8HJ0J5NO 6QQ/KLIF 21275_ Slammed into Y-64 Sentinel. 21275_ Matter Neutralizer destroyed. 21276_ Slug penetrates Wall. 21279_ Penetrated by Slug. 21297_ System corrupted: Matter fused (-6). 21301_ DSF Access disabled. 21307_ Acquired 25 matter. 21315_ Penetrated by Slug. Map ----- +----------------------------------------------------+ | ?????????????!???# """" "" " #=%| #####+######## | | ???????????!?????# """" ! !%#[%! ## # |* * !" | | """?"""??????????# """" [[=#%[[ T####=! ![# | | """?"""??[???????# """" %=*=/%!= #??#| R" # | | """?"""??????????# """ !%*%=# ##??# "" # | | ?????????????????# """" *=![%# #???# + | | ???############### *!!!=%# #???# """ # | | ???# ## ! # #???# """ # | | ???# " = ! # ##### """ # | | ???# """ """ ## # + # | | ???# """ """ ############### ##### """ # | | ???# """ """ #?????????????# #???# """ # | | ???# #?????#???##### #???# """ # | | ???# """ !!! #????# #???# * # | | ???? """ !! #????# ##########+####### """ # | | ???# """ !! #????# #???# # """ # | | ???# #????# #???# """""" # """ # | | ??# #????# #???# """""" # # | | "??# =#????# #???# """""" # ? ? | | " ?##########+####???# #???# """""" ####+####? | | " ######## #???# ##### #????????? | | # ##### # """""" #????????? | | " # "" # """""" ??????????? | | " + T" + """"""???????????? | | " # Y # """"""??+????????? | | ??# ! ##### @ # ???????????? | | "?# % ## #???## ## ?????????? | | "?# ##########????# ###############????????? | | "?# #?????????????# ############???????????? | | ??# #?????????????# ## ????????????? | | ??# #????????????## ## """"????????????? | | ??# #????????????# # """"????????????? | | # ##############p"" # """"????????????? | | + =%[%! !!%=T" + * """"????????????? | | " # [ [ #######%* # """"????????????? | | " # #?????# # """"????????????? | | # ##????####### #???????????? | | # #??????????###########???????????? | | + " #????????????????????????????????? | | # " ##########????????????????????????? | | # # ""G"" #????????????????????????? | | [# # "" "" #????????????????????????? | | # # #????????????????????????? | | ??+ # "" #????????????????????????? | | ??#####+## # "" #????????????????????????? | | ?????????# # """ #????????????????????????? | | ?????????# + """ #????????????????????????? | | ????????=# # """ #????????????????????????? | | ?????????# # #????????????????????????? | | ????===??# ##########????????????????????????? | +----------------------------------------------------+ Best States ------------- Heat Dissipation 78 Energy Generation 41 Energy Capacity 415 Matter Stores 300 Matter Capacity 300 Sight Range 16 Robot Scan Range 18 Terrain Scan Density 10 Armor Coverage 2050 Resistance: KI 20 Resistance: TH 20 Resistance: EX 20 Resistance: EM 20 Resistance: I 20 Resistance: S 20 Resistance: P 20 Evasion (%) 55 Recoil Reduction 4 Offensive Hacking 31 Item Schematics ----------------- Mak. Leg | -8/Materials | Scanalyzed Mak. Power Source | -8/Materials | Scanalyzed Mak. Shrapnel Gun | -7/Factory | Scanalyzed Beamcaster | -7/Factory | Scanalyzed Riot Gun | -7/Zion | Free Battle Rifle | -7/Zion | Free Barrage Gun | -7/Zion | Free Flamer | -7/Zion | Free Imp. Powered Armor | -5/Factory | Scanalyzed Robot Schematics ------------------ None Fabricated ------------ Mak. Leg | x2 | -6/Factory Alien Tech Used ----------------- None Achievements -------------- None Challenges ------------ None Game ------ Seed BarrageScrapTreads Manual? 0 Play Time 02:37:42 Cumulative 168.6 hours Start 2023.05.23 @ 01:11:53 End 2023.05.23 @ 09:28:28 Sessions 3 Manual Loads 0 Difficulty Adventurer Special Mode None Game No. 135 Rogue 63 Adventurer 46 Explorer 26 Win Type - Total 1 Types 1/0/0/0/0/0/0/0/0 Lore% 54 Gallery% 66 Achievement% 67 Wizard Run 0 Options --------- ASCII 0 Keyboard 0 Movement Mouse Keybinds 0 Fullscreen 0 Font 16/Smallcaps Map View 76x50 Tactical HUD 1 Map Filters NONE Filters BRIGHTNESS(115)|SATURATION(100)|LOW_CONTRAST(0,16,30) Steam 1 RUN: dc060712-3299-43d5-a12c-d39812dcbb1b